bitfinex/quotes_ETHUSD_20250106
["timestamp","ask_amount","ask_price","bid_price","bid_amount"]
[1736131047925,0.54018953,3683.5,3683.4,0.97342747]
[1736131048148,0.54018953,3683.5,3682.9,4.0493]
[1736131048353,0.54018953,3683.5,3683.4,35.0]
[1736131048679,2.58844046,3684.5,3683.4,35.0]
[1736131048890,2.58844046,3684.8,3683.5,1.53154458]
[1736131049192,2.44225,3685.2,3683.6,1.5044]
[1736131049495,1.5648,3685.3,3684.3,1.5044]
[1736131049983,2.4422,3685.2,3684.3,1.5044]
[1736131050167,2.4422,3685.2,3684.4,35.0]
[1736131050483,0.53309272,3684.6,3684.4,35.0]
[1736131053392,0.53309272,3684.6,3683.9,3.99655]
[1736131053559,0.53309272,3684.6,3683.9,1.5535]
[1736131054179,0.53309272,3684.6,3684.1,2.44292]
[1736131054351,0.53309272,3684.6,3684.1,2.44289]
[1736131054682,0.53309272,3684.6,3684.2,0.399639]
[1736131055682,0.53309272,3684.6,3684.3,0.0275645]
[1736131055988,0.53309272,3684.6,3684.2,0.399639]
[1736131056159,0.53309272,3684.6,3684.4,0.02754565]
[1736131056489,0.53309272,3684.6,3684.5,0.0275268]
[1736131056659,0.53309272,3684.6,3684.2,0.399639]
[1736131056871,0.53309272,3684.6,3684.5,0.0275268]
[1736131057077,0.53309272,3684.6,3683.9,1.5535]
[1736131057283,0.53309272,3684.6,3684.5,0.0275268]
[1736131057582,0.53309272,3684.6,3683.9,1.5535]
[1736131057792,0.53309272,3684.6,3684.5,0.0275268]
[1736131057973,0.53309272,3684.6,3683.9,1.5535]
[1736131058178,0.53309272,3684.6,3683.9,1.70885]
[1736131058689,0.53309272,3684.6,3684.0,0.02762105]
[1736131061406,0.53309272,3684.6,3683.6,2.44324]
[1736131061716,0.53309272,3684.6,3684.1,0.0276022]
[1736131061854,0.53309272,3684.6,3683.6,2.44324]
[1736131062056,0.52982731,3684.6,3684.2,0.02758335]
[1736131062256,0.52982731,3684.6,3683.4,4.02909]
[1736131062457,0.52982731,3684.6,3684.3,0.0275645]
[1736131062796,0.52982731,3684.6,3683.4,1.5857]
[1736131063217,0.52982731,3684.6,3683.5,0.02777746]
[1736131063424,1.5632,3684.1,3683.5,0.02777746]
[1736131063617,1.5632,3684.1,3682.8,5.15621277]
[1736131063777,0.54717703,3683.7,3683.6,0.0277586]
[1736131063982,2.44273,3684.4,3682.8,5.15621277]
[1736131063983,1.5632,3684.4,3682.8,1.09846277]
[1736131064283,1.5632,3684.4,3683.3,2.44344]
[1736131064480,0.54951353,3684.3,3683.3,2.44344]
[1736131064684,1.5632,3684.7,3683.7,2.44316]
[1736131064895,4.15164046,3685.0,3683.4,1.64165767]
[1736131065097,0.53065848,3684.5,3683.9,1.5863]
[1736131065297,2.58844046,3685.3,3684.1,2.4429]
[1736131065485,4.15834046,3685.3,3684.2,2.44284]
[1736131065686,4.15834046,3685.3,3684.2,0.02761679]
[1736131065882,4.15834046,3685.3,3684.0,0.16139922]
[1736131066226,4.15834046,3685.3,3683.9,1.5863]
[1736131066227,0.54027619,3684.6,3684.3,0.02759794]
[1736131066421,1.5699,3684.5,3683.4,1.09846277]
[1736131066622,0.54027619,3684.6,3684.4,0.02757909]
[1736131066811,0.54027619,3684.6,3683.6,2.44323]
[1736131067014,0.54027619,3684.6,3684.5,0.02725908]
[1736131067206,0.54027619,3684.6,3683.6,2.44323]
[1736131067407,0.54027619,3684.6,3684.5,0.02725908]
[1736131067620,0.54027619,3684.6,3683.6,2.846183]
[1736131067807,0.54027619,3684.6,3684.5,0.02734511]
[1736131068005,0.54027619,3684.6,3683.6,2.846183]
[1736131068210,0.54027619,3684.6,3683.7,0.02749593]
[1736131068607,0.54027619,3684.6,3683.7,0.33873463]
[1736131068991,0.54027619,3684.6,3683.7,2.78191463]
[1736131069526,0.54027619,3684.6,3683.8,2.44309]
[1736131069895,0.54027619,3684.6,3683.9,0.02745822]
[1736131070929,0.54027619,3684.6,3683.7,0.3112387]
[1736131071134,0.54027619,3684.6,3684.0,0.02742981]
[1736131071434,0.54027619,3684.6,3684.1,0.02650477]
[1736131071595,0.54027619,3684.6,3683.8,2.4431]
[1736131071805,1.5438,3685.6,3684.5,3.94386]
[1736131071998,0.15438,3685.5,3684.7,2.44252]
[1736131072232,0.15438,3685.5,3684.8,0.02637283]
[1736131072434,0.54180486,3685.3,3684.7,2.4425]
[1736131072735,0.54180486,3685.3,3684.9,0.02635399]
[1736131072937,0.54180486,3685.3,3684.8,0.02637283]
[1736131073148,0.54180486,3685.3,3685.0,0.02633514]
[1736131073314,0.54180486,3685.3,3684.5,3.94382]
[1736131073315,0.54180486,3685.3,3684.9,0.02635399]
[1736131073514,0.54180486,3685.3,3685.1,0.0263163]
[1736131073714,0.54180486,3685.3,3685.0,0.02633514]
[1736131073915,0.54180486,3685.3,3685.2,0.02629746]
[1736131074442,0.75036535,3685.3,3684.2,4.08921]
[1736131074648,0.54180486,3685.3,3685.2,0.02629746]
[1736131074805,0.54180486,3685.3,3684.6,35.0]
[1736131075008,0.54180486,3685.3,3684.7,0.02639168]
[1736131075666,0.54180486,3685.3,3684.3,2.44277]
[1736131075850,0.54180486,3685.3,3684.8,0.02637283]
[1736131076140,0.54180486,3685.3,3684.4,35.0]
[1736131076340,0.54180486,3685.3,3684.9,0.02635399]
[1736131076542,0.54180486,3685.3,3684.6,2.44259]
[1736131076743,0.54180486,3685.3,3685.0,0.02633514]
[1736131077044,0.54180486,3685.3,3685.1,0.0263163]
[1736131077243,0.54180486,3685.3,3684.6,2.44259]
[1736131077407,0.54180486,3685.3,3685.2,0.02629746]
[1736131077612,0.54180486,3685.3,3684.6,1.97576944]
[1736131077812,0.54180486,3685.3,3684.7,0.02639168]
[1736131078448,0.54180486,3685.3,3684.7,2.46891168]
[1736131080914,0.54180486,3685.3,3684.8,35.0]
[1736131081161,1.6062,3685.9,3685.0,1.6429]
[1736131081453,2.73244046,3686.6,3685.4,2.44206]
[1736131081454,0.55227188,3686.0,3685.4,2.44206]
[1736131081752,0.55227188,3686.0,3685.5,35.0]
[1736131081967,0.55227188,3686.0,3685.5,35.02593048]
[1736131082347,0.55227188,3686.0,3685.5,37.32488354]
[1736131082868,0.55227188,3686.0,3685.5,35.02593048]
[1736131083873,1.5139,3685.9,3685.5,0.02593048]
[1736131084100,1.5139,3685.9,3684.8,2.44241]
[1736131084396,1.5139,3685.9,3685.6,0.02591164]
[1736131084569,1.5139,3685.9,3684.8,37.44241]
[1736131084871,1.5139,3685.9,3684.9,0.02604352]
[1736131085233,1.5139,3685.9,3684.6,2.44258]
[1736131085469,1.5139,3685.9,3685.0,0.02602468]
[1736131085696,1.5139,3685.9,3684.7,35.0]
[1736131085846,1.5139,3685.9,3685.1,0.02564759]
[1736131086042,0.72330505,3685.8,3684.6,2.44258]
[1736131086248,0.72330505,3685.8,3685.2,0.02562875]
[1736131086461,2.44188,3685.7,3684.7,35.0]
[1736131086635,0.72330505,3685.8,3685.3,0.02560991]
[1736131086842,0.74041437,3685.7,3684.7,35.0]
[1736131087036,0.74041437,3685.7,3685.4,0.02563883]
[1736131087233,0.74041437,3685.7,3684.7,35.0]
[1736131087440,0.74041437,3685.7,3685.5,0.02561999]
[1736131087652,0.74041437,3685.7,3684.7,35.0]
[1736131087947,1.01144684,3685.6,3684.7,35.0]
[1736131088670,2.99213,3685.3,3684.7,35.0]
[1736131089502,2.99213,3685.3,3683.9,2.44299]
[1736131090008,5.03073046,3685.1,3684.2,35.0]
[1736131090179,3.13844046,3684.8,3684.2,35.0]
[1736131090377,0.53877267,3684.3,3683.4,1.09846277]
[1736131090545,1.5136,3684.2,3683.2,2.74196277]
[1736131090884,1.5136,3684.2,3683.3,35.0]
[1736131091081,2.58844046,3683.7,3683.3,35.0]
[1736131091240,0.55,3683.9,3683.3,35.0]
[1736131092158,1.5377,3683.8,3683.3,35.0]
[1736131093383,1.5377,3683.8,3683.3,39.03978102]
[1736131093544,0.54936666,3683.9,3683.6,2.44325]
[1736131093949,0.54936666,3683.9,3683.4,2.44338]
[1736131094180,0.54936666,3683.9,3683.7,35.0]
[1736131094360,0.54936666,3683.9,3683.1,2.44353]
[1736131094361,1.5377,3683.8,3682.7,2.44383]
[1736131094567,1.5377,3683.8,3682.9,2.44369]
[1736131094766,1.5377,3683.8,3683.0,35.0]
[1736131097798,1.5377,3683.8,3683.0,37.44364]
[1736131098100,0.54936666,3683.9,3683.7,2.44318]
[1736131098396,1.5706,3684.6,3683.7,2.44318]
[1736131098598,1.5706,3684.6,3684.0,35.0]
[1736131098801,1.5706,3685.4,3684.5,2.44266]
[1736131099098,1.5706,3685.4,3684.9,2.44238]
[1736131099565,1.5706,3686.0,3685.2,2.44219]
[1736131099761,0.53809903,3685.6,3685.0,37.46827598]
[1736131100027,0.53809903,3685.6,3685.3,0.02590542]
[1736131100166,0.53809903,3685.6,3685.0,37.44231]
[1736131100800,0.53809903,3685.6,3685.1,0.0302701]
[1736131101320,0.55,3685.9,3685.1,0.0302701]
[1736131101465,2.58844046,3685.8,3685.1,0.0302701]
[1736131102168,0.55,3685.9,3685.1,0.0302701]
[1736131102362,0.52994602,3685.6,3685.1,0.0302701]
[1736131103199,1.656,3685.5,3685.1,0.0302701]
[1736131103703,0.55,3685.4,3684.3,1.5849]
[1736131104001,0.55,3685.4,3685.2,0.03950892]
[1736131104206,0.55,3685.4,3684.1,2.44292]
[1736131104367,0.55,3685.4,3683.9,1.6158]
[1736131104568,0.55,3685.4,3684.3,2.44279]
[1736131104784,0.55,3685.4,3684.3,5.16036592]
[1736131104985,0.55,3685.4,3684.4,0.03578417]
[1736131105390,0.55,3685.4,3684.5,35.0]
[1736131105700,0.55,3685.4,3684.6,0.03572763]
[1736131107893,1.656,3685.5,3684.9,2.44238]
[1736131108286,0.53487178,3685.8,3685.0,0.401038]
[1736131108450,0.53487178,3685.8,3685.0,0.03561456]
[1736131108796,0.53487178,3685.8,3684.8,2.44245]
[1736131109015,0.53487178,3685.8,3685.1,0.03558629]
[1736131109215,0.53487178,3685.8,3684.8,2.44245]
[1736131109446,0.53487178,3685.8,3685.2,0.03555803]
[1736131109651,0.53487178,3685.8,3684.8,2.44245]
[1736131109799,0.53487178,3685.8,3685.3,0.03552977]
[1736131110325,0.53487178,3685.8,3684.8,2.44245]
[1736131110523,0.53487178,3685.8,3685.3,0.03552977]
[1736131110719,0.53487178,3685.8,3684.7,1.568]
[1736131110943,0.53487178,3685.8,3685.3,0.03552977]
[1736131111111,1.542114,3685.8,3684.7,4.01051]
[1736131111311,1.542114,3685.8,3685.3,0.03552977]
[1736131111611,1.542114,3685.8,3684.7,4.01051]
[1736131111820,1.542114,3685.8,3685.3,0.03552977]
[1736131112022,1.542114,3685.8,3684.7,4.01051]
[1736131112226,1.542114,3685.8,3685.3,0.03552977]
[1736131112458,1.542114,3685.8,3684.7,4.01051]
[1736131112656,1.542114,3685.8,3685.3,0.53552977]
[1736131112954,1.542114,3685.8,3685.3,0.5]
[1736131113159,1.542114,3685.8,3685.3,0.53552977]
[1736131113602,1.542114,3685.8,3685.3,0.5]
[1736131116025,5.58045046,3685.5,3685.3,0.5]
[1736131116337,0.76448505,3685.4,3685.3,0.5]
[1736131116569,1.5144,3685.6,3685.3,0.5]
[1736131118320,0.55,3685.5,3685.3,0.5]
[1736131122554,5.58046046,3685.5,3685.3,0.5]
[1736131122750,2.99206,3685.4,3685.3,0.5]
[1736131122958,7.55206,3685.4,3685.3,0.5]
[1736131123152,8.86611005,3685.4,3685.3,0.5]
[1736131125402,1.56,3685.2,3683.8,35.0]
[1736131125604,4.55253,3684.7,3683.8,35.0]
[1736131126209,1.56,3684.7,3683.8,35.0]
[1736131126421,1.56,3684.7,3683.8,37.71757592]
[1736131126976,0.55062069,3684.3,3683.8,37.71757592]
[1736131127711,1.56,3685.2,3684.0,2.44294]
[1736131128106,0.53187731,3684.6,3684.0,2.44294]
[1736131128523,0.53187731,3684.6,3683.8,37.71757592]
[1736131129216,0.53187731,3684.6,3683.9,2.71757592]
[1736131129911,0.53187731,3684.6,3683.8,37.71757592]
[1736131130877,1.5085,3684.5,3683.6,1.6091]
[1736131131080,0.53187731,3684.6,3683.7,2.44314]
[1736131131274,0.53187731,3684.6,3683.6,1.6091]
[1736131131483,0.1336998,3685.3,3684.3,2.44278]
[1736131131484,1.5085,3685.3,3684.3,2.44278]
[1736131132422,1.5085,3685.3,3684.4,35.0]
[1736131132577,0.55161771,3684.7,3684.4,35.0]
[1736131132777,0.55161771,3684.7,3684.4,37.71757592]
[1736131134419,1.5085,3685.3,3684.4,37.71757592]
[1736131134795,0.55,3685.2,3684.4,35.0]
[1736131135115,0.55,3685.2,3683.9,1.5378]
[1736131135116,0.55,3684.8,3683.9,1.5378]
[1736131135616,0.55,3684.8,3684.0,35.0]
[1736131137795,0.55,3684.6,3683.6,1.5184]
[1736131138186,0.55,3684.7,3683.6,1.5184]
[1736131138423,0.55,3684.8,3683.7,35.0]
[1736131140559,0.55,3684.8,3683.7,37.44319]
[1736131141226,0.55,3684.8,3683.7,35.0]
[1736131141422,0.55,3684.6,3683.7,35.0]
[1736131143884,0.55618198,3684.3,3683.7,35.0]
[1736131144049,0.55618198,3684.3,3683.7,37.71757592]
[1736131144985,4.7659,3685.4,3684.1,2.44289]
[1736131145142,0.55,3685.3,3684.1,2.44289]
[1736131145343,0.53884715,3684.8,3683.6,3.96165]
[1736131145569,1.6269,3685.4,3684.3,1.5625]
[1736131146388,0.55,3685.3,3684.3,1.5625]
[1736131146583,0.5505305,3684.9,3684.4,35.0]
[1736131147189,1.5889,3686.2,3684.5,2.58844046]
[1736131147386,0.55520384,3685.8,3684.9,2.44239]
[1736131147545,0.55520384,3685.8,3684.7,2.44251]
[1736131147882,0.55,3685.7,3685.0,35.0]
[1736131149489,0.55520384,3685.8,3685.0,35.0]
[1736131149696,1.624,3685.7,3685.0,35.0]
[1736131149898,0.21792038,3685.6,3685.0,35.0]
[1736131150197,0.55,3685.5,3684.3,1.5945]
[1736131150364,1.5919,3685.4,3684.3,1.5945]
[1736131150752,4.5919,3685.4,3684.3,1.5945]
[1736131151078,1.5919,3685.4,3684.3,1.5945]
[1736131151278,2.07207504,3685.4,3684.3,1.5945]
[1736131151597,2.07207504,3685.4,3684.4,35.0]
[1736131151898,5.07207504,3685.4,3684.4,35.0]
[1736131152571,4.5919,3685.4,3684.4,35.0]
[1736131152977,1.5919,3685.4,3684.6,1.5101]
[1736131153588,0.53314864,3685.3,3684.6,1.5101]
[1736131153795,0.53314864,3685.3,3684.4,35.0]
[1736131157393,0.53314864,3685.3,3684.4,37.44272]
[1736131158211,1.0456535,3685.3,3684.4,35.0]
[1736131158737,1.6022,3685.2,3684.4,35.0]
[1736131158942,4.6022,3684.9,3683.9,1.09846277]
[1736131159090,2.44269,3684.5,3683.9,1.09846277]
[1736131159292,3.0,3684.3,3683.9,1.09846277]
[1736131159719,1.6022,3684.4,3683.9,1.09846277]
[1736131160416,1.6022,3684.4,3684.0,35.0]
[1736131162134,3.0,3684.3,3684.0,35.0]
[1736131162427,1.6022,3684.3,3683.0,3.54209277]
[1736131162730,2.6197143,3684.3,3683.1,0.69150036]
[1736131162932,5.0625143,3684.3,3683.2,35.0]
[1736131163130,1.5683,3684.0,3683.2,35.0]
[1736131163326,3.0,3683.9,3683.2,35.0]
[1736131164730,1.5683,3684.0,3683.2,35.0]
[1736131165440,3.0,3683.9,3683.2,35.0]
[1736131166324,3.0,3683.9,3682.4,1.09846277]
[1736131166325,4.6654,3683.3,3682.4,1.09846277]
[1736131166522,5.03205046,3683.1,3682.4,1.09846277]
[1736131166723,2.58844046,3682.8,3682.3,1.09846277]
[1736131166898,2.58844046,3682.5,3682.3,1.09846277]
[1736131167099,7.56485,3682.4,3682.3,1.09846277]
[1736131167422,5.44419,3682.2,3682.1,1.04868163]
[1736131167624,3.55,3682.1,3681.8,2.69471298]
[1736131167942,1.5708,3682.0,3681.0,1.67941871]
[1736131168140,1.5708,3681.3,3681.0,1.67941871]
[1736131168316,5.58844046,3681.1,3681.0,1.67941871]
[1736131168696,1.15434305,3681.9,3681.0,1.67941871]
[1736131168697,1.5708,3681.7,3681.0,1.67941871]
[1736131168897,0.53979148,3682.5,3681.0,1.67941871]
[1736131168898,1.5308,3682.1,3681.0,1.67941871]
[1736131169504,3.0,3682.1,3681.4,2.4447]
[1736131169704,1.70213813,3682.0,3681.5,1.83087]
[1736131169941,1.70213813,3682.0,3681.8,2.44444]
[1736131170126,1.70213813,3682.0,3681.9,35.0]
[1736131170328,0.00213813,3682.0,3681.9,36.5829]
[1736131171203,0.53185471,3683.6,3682.4,2.44404]
[1736131171403,0.53185471,3683.6,3682.5,0.244404]
[1736131172347,3.53185471,3683.6,3682.5,0.244404]
[1736131172559,3.53185471,3683.6,3682.5,2.688344]
[1736131172767,3.0,3683.9,3682.8,2.44375]
[1736131172964,1.5361,3683.9,3682.7,1.5276]
[1736131173113,1.5361,3684.4,3682.7,1.5276]
[1736131173314,1.5361,3684.4,3683.0,2.44361]
[1736131173615,1.5361,3684.4,3683.1,0.244361]
[1736131173952,1.5361,3684.4,3683.5,2.4433]
[1736131174240,1.5361,3684.4,3683.6,37.44324]
[1736131174740,3.89951751,3684.8,3683.6,36.5399]
[1736131174942,1.63,3685.2,3684.3,2.44279]
[1736131175244,1.63,3685.2,3683.7,2.44317]
[1736131175245,1.63,3685.2,3684.0,2.44294]
[1736131175541,1.63,3685.2,3684.1,0.244294]
[1736131175709,1.63,3685.2,3684.2,2.44283]
[1736131176117,1.63,3685.2,3684.1,0.244294]
[1736131176337,1.63,3685.2,3684.3,35.0]
[1736131179510,2.44227,3685.1,3683.7,2.44314]
[1736131179712,2.44227,3685.1,3683.8,0.398304]
[1736131179912,2.44236,3685.0,3683.9,35.0]
[1736131180137,2.44241,3684.9,3683.9,35.0]
[1736131180338,2.44247,3684.8,3683.9,35.0]
[1736131180538,1.5528,3684.9,3683.2,2.44347]
[1736131180744,0.45528,3684.8,3683.3,0.402127]
[1736131181055,1.5528,3684.9,3683.4,2.44336]
[1736131181238,3.0,3684.8,3683.4,2.44336]
[1736131181953,3.0,3684.8,3683.5,35.0]
[1736131182150,2.44255,3684.7,3683.5,35.0]
[1736131183128,3.55189952,3684.8,3683.5,35.0]
[1736131183324,2.44262,3684.6,3683.5,35.0]
[1736131183524,0.51046995,3684.7,3683.5,35.0]
[1736131183744,2.44275,3684.4,3683.5,35.0]
[1736131184059,0.51046995,3684.7,3683.5,35.0]
[1736131184060,1.5975,3684.7,3683.5,35.0]
[1736131184261,2.44267,3684.5,3683.5,35.0]
[1736131184462,2.44267,3684.5,3683.6,2.71757592]
[1736131186461,1.5975,3684.7,3683.6,2.71757592]
[1736131187036,2.44282,3684.3,3683.1,1.5778]
[1736131187347,2.44282,3684.3,3683.2,35.0]
[1736131187770,3.60917298,3684.4,3683.2,35.0]
[1736131187929,2.44314,3683.8,3682.6,1.5682]
[1736131188129,4.6632,3684.3,3682.7,0.4256634]
[1736131188351,0.53206461,3683.9,3682.6,4.0121]
[1736131188661,0.53206461,3683.9,3682.7,35.0]
[1736131189150,0.53206461,3683.9,3682.7,37.44385]
[1736131189742,0.53206461,3683.9,3682.8,2.44378]
[1736131190535,0.53206461,3683.9,3682.9,35.0]
[1736131190747,0.53206461,3683.9,3682.9,37.71757592]
[1736131190973,2.44315,3683.8,3682.9,37.71757592]
[1736131191148,2.44315,3683.8,3682.9,35.0]
[1736131191381,2.44315,3683.8,3682.0,2.44431]
[1736131191382,2.44351,3683.3,3682.0,2.44431]
[1736131191543,0.55,3683.5,3681.7,1.5082]
[1736131191544,2.44358,3683.2,3681.7,1.5082]
[1736131191727,2.44358,3683.2,3682.1,35.0]
[1736131192064,2.44358,3683.2,3682.1,37.71757592]
[1736131192427,3.05917298,3683.6,3682.1,37.71757592]
[1736131192631,4.02113,3683.8,3682.2,1.5716]
[1736131192892,4.02113,3683.8,3682.4,2.44402]
[1736131193182,4.02113,3683.8,3682.2,1.5716]
[1736131193500,4.02113,3683.8,3682.4,2.44402]
[1736131193786,0.54727219,3683.7,3682.5,2.44398]
[1736131194062,3.05917298,3683.6,3682.6,35.0]
[1736131194225,1.6338,3683.2,3682.6,35.0]
[1736131194421,2.44359,3683.1,3682.2,1.5716]
[1736131194667,2.44366,3683.0,3682.2,1.5716]
[1736131195077,2.44366,3683.0,3682.3,35.0]
[1736131195239,0.53406592,3683.0,3682.3,35.0]
[1736131195568,2.97773592,3683.0,3682.3,35.0]
[1736131195748,0.53406592,3683.0,3682.3,35.0]
[1736131196163,1.6338,3683.2,3682.3,37.71757592]
[1736131197450,2.16569233,3683.2,3682.3,37.71757592]
[1736131197970,2.16569233,3683.2,3682.3,35.0]
[1736131198332,2.44372,3682.9,3682.3,35.0]
[1736131198543,2.44382,3682.8,3682.3,35.0]
[1736131199177,2.44365,3683.1,3682.3,35.0]
[1736131199373,2.59057737,3682.8,3682.3,35.0]
[1736131199594,0.25905774,3682.7,3682.3,35.0]
[1736131200087,0.25905774,3682.7,3681.9,1.6583]
[1736131200383,1.5501,3682.6,3681.4,1.6583]
[1736131200587,2.44423,3682.2,3681.5,35.0]
[1736131200742,2.44423,3682.2,3681.1,1.5286]
[1736131200943,1.5501,3682.1,3681.1,1.5286]
[1736131201348,1.5501,3682.1,3681.2,35.0]
[1736131201776,3.99437,3682.1,3681.2,35.0]
[1736131202292,0.55619281,3682.0,3681.2,35.0]
[1736131202987,0.55619281,3682.0,3681.3,2.44478]
[1736131203205,0.55619281,3682.0,3681.4,2.71757592]
[1736131203414,0.55619281,3682.0,3680.9,2.44503]
[1736131203616,2.44445,3681.8,3681.0,35.0]
[1736131203903,1.5785,3681.6,3681.0,35.0]
[1736131204497,1.5785,3681.6,3679.7,4.11224261]
[1736131204498,2.59057737,3681.1,3680.1,1.5244]
[1736131204667,4.00439,3680.6,3679.7,1.11224261]
[1736131204855,1.5591,3681.0,3679.8,36.5989]
[1736131205181,1.5591,3681.7,3680.2,2.44551]
[1736131205493,5.59057737,3681.6,3680.1,2.44555]
[1736131205802,0.54359291,3681.4,3679.8,1.5989]
[1736131206125,2.44485,3681.2,3680.0,2.44564]
[1736131206472,1.6263,3681.3,3680.1,2.44557]
[1736131206698,1.6263,3681.3,3680.2,2.690057]
[1736131207592,1.6263,3681.3,3680.2,0.244557]
[1736131207800,1.6263,3681.3,3680.3,2.44544]
[1736131208107,1.6263,3681.3,3680.4,2.44536]
[1736131208880,1.6263,3681.3,3680.1,2.44554]
[1736131209080,1.6263,3681.3,3679.9,2.59057737]
[1736131209323,1.6263,3681.3,3679.8,1.5989]
[1736131209466,1.6263,3681.3,3680.1,2.44556]
[1736131209673,1.6263,3681.3,3679.9,0.41894774]
[1736131209973,1.62303113,3681.3,3680.3,2.44545]
[1736131210503,1.62303113,3681.3,3679.9,0.41894774]
[1736131210707,1.62303113,3681.3,3680.5,2.44531]
[1736131211202,1.62303113,3681.3,3679.8,1.5989]
[1736131211682,1.62303113,3681.3,3680.7,2.44517]
[1736131212196,1.62303113,3681.3,3679.8,4.04463]
[1736131212370,4.2136085,3681.3,3679.8,1.5989]
[1736131212570,2.92048858,3681.2,3679.9,2.60558]
[1736131213391,2.92048858,3681.2,3680.0,2.44563]
[1736131213392,0.47563858,3681.2,3680.0,2.44563]
[1736131213794,0.47563858,3681.2,3680.1,2.44558]
[1736131213994,1.62303113,3681.3,3680.3,2.44544]
[1736131214214,1.62303113,3681.3,3679.9,0.15989]
[1736131214215,1.62303113,3681.3,3680.4,2.44535]
[1736131214526,2.44428,3682.1,3679.9,0.15989]
[1736131214527,1.6072,3681.7,3681.1,2.4449]
[1736131214730,1.6072,3682.4,3681.0,2.44497]
[1736131214932,1.6072,3682.4,3681.5,2.44464]
[1736131215230,1.6072,3682.4,3681.1,0.244497]
[1736131215231,1.6072,3682.8,3682.2,2.44416]
[1736131215391,1.6072,3682.8,3682.4,2.44405]
[1736131215596,1.6072,3682.8,3681.9,2.44439]
[1736131215829,1.6072,3682.8,3682.0,0.65423674]
[1736131216019,1.6072,3682.8,3682.4,2.44405]
[1736131216217,0.5544381,3683.1,3682.4,2.44405]
[1736131216591,1.562,3684.1,3682.5,1.6626]
[1736131216796,1.562,3684.1,3683.1,2.44353]
[1736131216997,1.562,3684.1,3683.1,2.687883]
[1736131217236,2.11083882,3684.1,3682.9,2.44371]
[1736131217456,2.11083882,3684.1,3682.5,1.6626]
[1736131217742,1.562,3684.1,3683.0,2.44363]
[1736131219374,4.00496,3684.1,3682.7,2.4438]
[1736131219550,0.4555484,3684.0,3682.8,0.41064]
[1736131219714,1.562,3684.1,3682.9,2.44371]
[1736131219910,1.562,3684.1,3682.5,1.6626]
[1736131220164,1.562,3684.1,3683.2,2.44351]
[1736131220504,1.562,3684.1,3682.5,1.6626]
[1736131220704,1.562,3684.1,3682.6,0.71660622]
[1736131220913,1.562,3684.1,3683.5,2.44332]
[1736131221226,1.562,3684.1,3682.8,0.55]
[1736131221402,0.53288043,3684.7,3683.6,2.44321]
[1736131221533,3.53288043,3684.7,3683.3,2.44341]
[1736131221733,3.53288043,3684.7,3683.0,8.87]
[1736131221734,0.89753604,3684.6,3683.0,8.87]
[1736131221937,1.5747,3684.5,3682.9,1.5084]
[1736131222241,1.5747,3684.5,3683.1,2.44357]
[1736131223138,2.44282,3684.3,3682.9,2.4437]
[1736131223658,2.44309,3683.9,3682.6,0.71660622]
[1736131223856,1.5415,3684.2,3682.2,2.44414]
[1736131223857,1.5415,3683.6,3682.2,2.44414]
[1736131224186,0.55054347,3683.1,3681.7,2.44451]
[1736131224492,2.44389,3682.7,3681.4,1.11224261]
[1736131225059,1.5415,3683.0,3681.4,1.11224261]
[1736131225060,1.6284,3682.4,3681.4,1.11224261]
[1736131225260,2.035641,3682.4,3681.1,0.244497]
[1736131225725,4.07246,3682.4,3681.1,0.244497]
[1736131226060,1.6284,3682.4,3681.1,2.689397]
[1736131226280,4.6284,3682.4,3681.1,2.689397]
[1736131226460,4.07247,3682.4,3681.1,2.4449]
[1736131226676,4.07247,3682.4,3680.8,1.6447]
[1736131226677,1.6284,3682.4,3680.8,1.6447]
[1736131227122,1.511,3681.8,3680.5,2.98399565]
[1736131227420,3.9555,3681.8,3680.5,0.53869565]
[1736131227601,4.65105,3681.8,3680.5,0.99031921]
[1736131228146,2.20655,3681.8,3680.5,0.99031921]
[1736131228263,1.511,3681.8,3680.8,2.44509]
[1736131228962,1.511,3681.8,3681.2,2.44485]
[1736131229161,1.511,3681.8,3680.6,2.44525]
[1736131229359,1.511,3681.8,3680.9,2.44502]
[1736131229643,1.511,3681.8,3681.0,2.44497]
[1736131229787,1.511,3681.8,3681.0,2.689467]
[1736131231335,1.511,3681.8,3680.4,0.55065324]
[1736131231618,1.511,3681.8,3680.1,3.05937221]
[1736131231619,1.511,3681.8,3680.1,2.44553]
[1736131231765,1.511,3681.8,3680.0,1.5349]
[1736131231965,2.4446,3681.6,3680.2,2.44549]
[1736131232547,0.55059782,3682.5,3679.6,4.11453399]
[1736131232548,3.0,3681.3,3680.3,0.05039937]
[1736131232751,2.4451,3680.9,3680.3,0.05039937]
[1736131232900,1.6627,3680.8,3679.2,1.11224261]
[1736131233305,1.6627,3680.8,3679.3,3.1124629]
[1736131233519,1.6627,3680.8,3679.7,3.05937221]
[1736131233769,1.6237,3681.3,3680.4,2.44537]
[1736131234095,1.6237,3681.3,3680.5,0.05285482]
[1736131234305,3.05937221,3682.2,3680.7,2.44513]
[1736131234642,1.6237,3682.1,3680.8,2.44512]
[1736131234803,1.6237,3682.1,3680.9,0.41226552]
[1736131235005,1.6237,3682.1,3680.8,0.05279588]
[1736131235204,1.6237,3682.1,3681.0,0.05275659]
[1736131235405,1.6237,3682.1,3681.1,0.05273695]
[1736131235623,1.6237,3682.1,3680.9,2.44499]
[1736131235938,1.6237,3682.1,3681.0,0.05275659]
[1736131236109,1.6237,3682.1,3681.1,0.24977466]
[1736131236504,1.6237,3682.1,3681.2,0.05271731]
[1736131237935,1.6237,3682.1,3681.3,0.05269767]
[1736131238297,1.6237,3682.1,3681.1,2.44489]
[1736131238522,1.6237,3682.1,3681.2,0.05271731]
[1736131239039,1.6237,3682.1,3681.0,2.44497]